[Event "FIDE World Rapid-ch Open 2018"]
[White "Melkumyan, Hrant"]
[Black "Sarana, Alexey"]
[Site "St. Petersburg"]
[Round "15.28"]
[Annotator "ChessBase"]
[Result "0-1"]
[Date "2018.12.28"]
[WhiteElo "2670"]
[BlackElo "2618"]
[PlyCount "138"]
[TimeControl "900+10"]

1. c4 {[%emt 0:0:0]} Nf6 {[%emt 0:0:0]} 2. Nc3 {[%emt 0:0:7]} e5 {[%emt 0:0:0]
} 3. Nf3 {[%emt 0:0:3]} Nc6 {[%emt 0:0:0]} 4. e3 {[%emt 0:0:0]} Bb4 {[%emt 0:0:0]} 5. Qc2 {[%emt 0:0:1]} Bxc3 {[%emt 0:0:0]} 6. Qxc3 {[%emt 0:0:2]} Qe7 {[%emt 0:0:0]} 7. d4 {[%emt 0:0:2]} exd4 {[%emt 0:0:0]} 8. Nxd4 {[%emt 0:0:2]} Ne4 {[%emt 0:0:2]} 9. Qd3 {[%emt 0:0:1]} 0-0 {[%emt 0:0:5]} 10. Be2 {[%emt 0:0:9]} Re8 {[%emt 0:0:16]} 11. 0-0 {[%emt 0:0:36]
} Nc5 {[%emt 0:0:41]} 12. Qd1 {[%emt 0:0:16]} Nxd4 {[%emt 0:0:0]} 13. Qxd4 {[%emt 0:0:2]} b6 {[%emt 0:0:2]} 14. b3 {[%emt 0:4:10]} Bb7 {[%emt 0:0:5]} 15. Qf4 {[%emt 0:0:49]} d6 {[%emt 0:0:31]} 16. Bb2 {[%emt 0:0:0]} a5 {[%emt 0:0:19]} 17. Rad1 {[%emt 0:1:4]} Qe6 {[%emt 0:0:12]} 18. Rfe1 {[%emt 0:0:51]} Qg6 {[%emt 0:0:35]} 19. Qg3 {[%emt 0:0:24]} f6 {[%emt 0:0:6]
} 20. Bf1 {[%emt 0:0:48]} Re7 {[%emt 0:0:38]} 21. f3 {[%emt 0:0:0]} Rae8 {[%emt 0:0:8]} 22. Qxg6 {[%emt 0:2:35]} hxg6 {[%emt 0:0:1]} 23. Kf2 {[%emt 0:0:1]} Kf7 {[%emt 0:0:36]} 24. h3 {[%emt 0:0:17]} g5 {[%emt 0:0:19]
} 25. e4 {[%emt 0:0:15]} Rh8 {[%emt 0:0:21]} 26. Bd4 {[%emt 0:0:0]} Bc8 {[%emt 0:0:24]} 27. Be3 {[%emt 0:0:19]} Be6 {[%emt 0:0:2]} 28. Rb1 {[%emt 0:0:3]} Ra8 {[%emt 0:0:6]} 29. a3 {[%emt 0:0:21]} Nd7 {[%emt 0:0:0]} 30. Rec1 {[%emt 0:0:17]} Ne5 {[%emt 0:0:5]} 31. Rc3 {[%emt 0:0:12]} Ree8 {[%emt 0:0:3]} 32. Rb2 {[%emt 0:0:12]} Reb8 {[%emt 0:0:28]} 33. Be2 {[%emt 0:0:3]
} Nc6 {[%emt 0:0:14]} 34. Kg3 {[%emt 0:0:38]} Ne5 {[%emt 0:0:0]} 35. Rd2 {[%emt 0:0:27]} Ke7 {[%emt 0:0:16]} 36. Kf2 {[%emt 0:0:25]} Nd7 {[%emt 0:0:28]} 37. Rc1 {[%emt 0:0:11]} Ne5 {[%emt 0:0:22]} 38. Rdd1 {[%emt 0:0:37]
} Rb7 {[%emt 0:0:12]} 39. Rh1 {[%emt 0:0:3]} Rh8 {[%emt 0:0:0]} 40. Kg3 {[%emt 0:0:47]} Ng6 {[%emt 0:0:15]} 41. b4 {[%emt 0:0:23]} axb4 {[%emt 0:0:4]} 42. axb4 {[%emt 0:0:2]} c5 {[%emt 0:0:4]} 43. Rb1 {[%emt 0:0:7]
} Ra7 {[%emt 0:0:12]} 44. bxc5 {[%emt 0:0:11]} bxc5 {[%emt 0:0:0]} 45. Rhc1 {[%emt 0:0:14]} Ne5 {[%emt 0:0:7]} 46. Bf1 {[%emt 0:0:17]} Rd8 {[%emt 0:0:10]} 47. Rc3 {[%emt 0:0:46]} Ra4 {[%emt 0:0:4]} 48. Rbc1 {[%emt 0:0:1]
} Rb8 {[%emt 0:0:10]} 49. f4 {[%emt 0:0:13]} gxf4+ {[%emt 0:0:0]} 50. Bxf4 {[%emt 0:0:1]} Rb2 {[%emt 0:0:23]} 51. Bxe5 {[%emt 0:0:37]} dxe5 {[%emt 0:0:43]} 52. h4 {[%emt 0:0:2]} Kf7 {[%emt 0:0:41]} 53. Re1 {[%emt 0:0:32]
} Rd2 {[%emt 0:0:31]} 54. Be2 {[%emt 0:0:18]} Rd4 {[%emt 0:0:0]} 55. Rb3 {[%emt 0:0:20]} Kg6 {[%emt 0:0:20]} 56. Rb8 {[%emt 0:0:28]} Bxc4 {[%emt 0:0:50]} 57. Bg4 {[%emt 0:0:2]} Ra7 {[%emt 0:1:14]} 58. Rf8 {[%emt 0:0:10]
} Kh7 {[%emt 0:1:41]} 59. h5 {[%emt 0:0:1]} Rd3+ {[%emt 0:0:0]} 60. Kh2 {[%emt 0:0:1]} Kh6 {[%emt 0:0:34]} 61. Rc8 {[%emt 0:0:59]} Kg5 {[%emt 0:0:28]} 62. Bf3 {[%emt 0:0:1]} Bf7 {[%emt 0:0:21]} 63. Rh8 {[%emt 0:0:21]
} Rad7 {[%emt 0:0:37]} 64. Kg3 {[%emt 0:0:5]} c4 {[%emt 0:0:0]} 65. Rh1 {[%emt 0:0:7]} f5 {[%emt 0:0:5]} 66. Rh7 {[%emt 0:0:40]} fxe4 {[%emt 0:0:18]} 67. h6 {[%emt 0:0:18]} gxh6 {[%emt 0:1:2]} 68. R1xh6 {[%emt 0:0:21]
} exf3 {[%emt 0:0:3]} 69. gxf3 {[%emt 0:0:1]} Bg6 {[%emt 0:0:0]} 0-1

[Event "FIDE World Rapid-ch Open 2018"]
[White "Antipov, Mikhail Al."]
[Black "Grachev, Boris"]
[Site "St. Petersburg"]
[Round "15.29"]
[Annotator "ChessBase"]
[Result "1-0"]
[Date "2018.12.28"]
[WhiteElo "2589"]
[BlackElo "2626"]
[PlyCount "139"]
[TimeControl "900+10"]

1. e4 {[%emt 0:0:58]} c5 {[%emt 0:0:0]} 2. Nf3 {[%emt 0:0:1]} Nf6 {[%emt 0:0:0]
} 3. e5 {[%emt 0:0:8]} Nd5 {[%emt 0:0:0]} 4. Nc3 {[%emt 0:0:0]} Nxc3 {[%emt 0:0:0]} 5. dxc3 {[%emt 0:0:3]} Nc6 {[%emt 0:0:6]} 6. Bd3 {[%emt 0:1:1]} e6 {[%emt 0:0:37]} 7. Bf4 {[%emt 0:0:46]} h6 {[%emt 0:0:17]
} 8. Qe2 {[%emt 0:0:26]} a6 {[%emt 0:0:9]} 9. 0-0 {[%emt 0:0:40]} b5 {[%emt 0:0:37]
} 10. a4 {[%emt 0:0:21]} c4 {[%emt 0:0:41]} 11. Be4 {[%emt 0:0:0]} Bb7 {[%emt 0:0:1]} 12. axb5 {[%emt 0:0:8]} axb5 {[%emt 0:0:2]} 13. Nd4 {[%emt 0:0:5]} Rxa1 {[%emt 0:7:33]} 14. Rxa1 {[%emt 0:0:2]} Bc5 {[%emt 0:0:13]
} 15. Nxb5 {[%emt 0:4:40]} Qb6 {[%emt 0:0:1]} 16. Nd6+ {[%emt 0:0:20]
} Bxd6 {[%emt 0:0:15]} 17. exd6 {[%emt 0:0:1]} 0-0 {[%emt 0:0:0]} 18. Rb1 {[%emt 0:0:10]} f5 {[%emt 0:0:53]} 19. Bf3 {[%emt 0:0:16]} Qb5 {[%emt 0:1:3]} 20. b3 {[%emt 0:2:53]} g5 {[%emt 0:1:8]} 21. Qxc4 {[%emt 0:0:51]
} Qxc4 {[%emt 0:0:3]} 22. bxc4 {[%emt 0:0:1]} Ba8 {[%emt 0:0:0]} 23. Be3 {[%emt 0:2:51]} Kf7 {[%emt 0:0:59]} 24. Ra1 {[%emt 0:0:48]} Rc8 {[%emt 0:0:51]} 25. h3 {[%emt 0:0:30]} Bb7 {[%emt 0:1:18]} 26. Bb6 {[%emt 0:0:3]
} Ra8 {[%emt 0:0:22]} 27. Rb1 {[%emt 0:0:2]} Ra2 {[%emt 0:0:0]} 28. Bd4 {[%emt 0:0:40]} Ba8 {[%emt 0:0:19]} 29. Bh5+ {[%emt 0:0:16]} Kf8 {[%emt 0:0:1]} 30. Bf6 {[%emt 0:0:2]} Rxc2 {[%emt 0:0:22]} 31. c5 {[%emt 0:0:33]
} Ra2 {[%emt 0:0:9]} 32. h4 {[%emt 0:0:24]} gxh4 {[%emt 0:0:0]} 33. Bxh4 {[%emt 0:0:9]} Kg7 {[%emt 0:0:8]} 34. Be8 {[%emt 0:0:5]} Ra7 {[%emt 0:0:1]} 35. c4 {[%emt 0:0:17]} Kf8 {[%emt 0:0:11]} 36. Bh5 {[%emt 0:0:4]
} Rb7 {[%emt 0:0:18]} 37. Ra1 {[%emt 0:0:11]} Ra7 {[%emt 0:0:0]} 38. Rb1 {[%emt 0:0:15]} Rb7 {[%emt 0:0:1]} 39. Rc1 {[%emt 0:0:1]} Rb3 {[%emt 0:0:17]} 40. Ra1 {[%emt 0:0:13]} Bb7 {[%emt 0:0:7]} 41. Bf6 {[%emt 0:0:8]
} Nb8 {[%emt 0:0:55]} 42. Bd1 {[%emt 0:0:14]} Rb4 {[%emt 0:0:0]} 43. Bh5 {[%emt 0:0:15]} Rb3 {[%emt 0:0:4]} 44. Kh2 {[%emt 0:0:3]} Nc6 {[%emt 0:0:14]} 45. Bd1 {[%emt 0:0:8]} Rd3 {[%emt 0:0:5]} 46. Rb1 {[%emt 0:0:9]
} Kf7 {[%emt 0:0:17]} 47. Bh4 {[%emt 0:0:20]} Ba8 {[%emt 0:0:0]} 48. Bh5+ {[%emt 0:0:2]} Kf8 {[%emt 0:0:5]} 49. Bf6 {[%emt 0:0:2]} Ra3 {[%emt 0:0:8]} 50. Bg6 {[%emt 0:0:20]} Rd3 {[%emt 0:0:13]} 51. f3 {[%emt 0:0:7]
} Ra3 {[%emt 0:0:20]} 52. Kg3 {[%emt 0:0:4]} Ra2 {[%emt 0:0:0]} 53. Rh1 {[%emt 0:0:5]} f4+ {[%emt 0:0:2]} 54. Kxf4 {[%emt 0:0:2]} Rxg2 {[%emt 0:0:12]} 55. Rxh6 {[%emt 0:0:2]} e5+ {[%emt 0:0:15]} 56. Ke3 {[%emt 0:0:2]
} Rxg6 {[%emt 0:0:3]} 57. Rxg6 {[%emt 0:0:1]} Kf7 {[%emt 0:0:0]} 58. Rh6 {[%emt 0:0:2]} Bb7 {[%emt 0:0:19]} 59. Bh8 {[%emt 0:0:15]} Ba6 {[%emt 0:0:15]} 60. Ke4 {[%emt 0:0:3]} Bb7 {[%emt 0:0:13]} 61. Bxe5 {[%emt 0:0:12]
} Ne7+ {[%emt 0:0:2]} 62. Kd3 {[%emt 0:0:8]} Ng6 {[%emt 0:0:0]} 63. f4 {[%emt 0:0:1]} Bc6 {[%emt 0:0:7]} 64. Kd4 {[%emt 0:0:2]} Nf8 {[%emt 0:0:16]} 65. f5 {[%emt 0:0:2]} Ba4 {[%emt 0:0:3]} 66. Ke4 {[%emt 0:0:0]} Bc6+ {[%emt 0:0:7]} 67. Kf4 {[%emt 0:0:1]} Kg8 {[%emt 0:0:1]} 68. Rh8+ {[%emt 0:0:3]} Kf7 {[%emt 0:0:1]} 69. Kg5 {[%emt 0:0:2]} Be4 {[%emt 0:0:15]
} 70. Bf6 {[%emt 0:0:3]} 1-0

[Event "FIDE World Rapid-ch Open 2018"]
[White "Indjic, Aleksandar"]
[Black "Savchenko, Boris"]
[Site "St. Petersburg"]
[Round "15.30"]
[Annotator "ChessBase"]
[Result "0-1"]
[Date "2018.12.28"]
[WhiteElo "2620"]
[BlackElo "2562"]
[PlyCount "100"]
[TimeControl "900+10"]

1. d4 {[%emt 0:0:0]} Nf6 {[%emt 0:0:0]} 2. Nf3 {[%emt 0:0:0]} g6 {[%emt 0:0:0]
} 3. Bg5 {[%emt 0:0:0]} Bg7 {[%emt 0:0:0]} 4. Nbd2 {[%emt 0:0:0]} d6 {[%emt 0:0:2]} 5. c3 {[%emt 0:0:2]} Nbd7 {[%emt 0:0:2]} 6. e4 {[%emt 0:0:46]} h6 {[%emt 0:0:22]} 7. Bh4 {[%emt 0:0:5]} Nh5 {[%emt 0:0:0]} 8. Nc4 {[%emt 0:0:6]} g5 {[%emt 0:0:30]} 9. Nfd2 {[%emt 0:0:30]} Ndf6 {[%emt 0:0:11]} 10. Bg3 {[%emt 0:0:2]} Nxg3 {[%emt 0:0:51]} 11. hxg3 {[%emt 0:0:3]
} d5 {[%emt 0:0:25]} 12. e5 {[%emt 0:0:26]} dxc4 {[%emt 0:0:0]} 13. exf6 {[%emt 0:0:2]} exf6 {[%emt 0:0:21]} 14. Nxc4 {[%emt 0:0:31]} f5 {[%emt 0:2:31]} 15. Bd3 {[%emt 0:0:43]} 0-0 {[%emt 0:2:50]} 16. 0-0 {[%emt 0:0:4]
} f4 {[%emt 0:2:15]} 17. gxf4 {[%emt 0:0:36]} gxf4 {[%emt 0:0:0]} 18. Re1 {[%emt 0:0:44]} Be6 {[%emt 0:0:44]} 19. Rxe6 {[%emt 0:1:14]} fxe6 {[%emt 0:0:2]} 20. Qg4 {[%emt 0:0:4]} Qf6 {[%emt 0:3:13]} 21. Ne5 {[%emt 0:0:23]
} Rad8 {[%emt 0:0:22]} 22. Re1 {[%emt 0:0:13]} c5 {[%emt 0:0:0]} 23. Ng6 {[%emt 0:1:50]} Rfe8 {[%emt 0:0:7]} 24. Nxf4 {[%emt 0:0:29]} cxd4 {[%emt 0:0:54]} 25. Nxe6 {[%emt 0:1:10]} dxc3 {[%emt 0:0:9]} 26. Bc4 {[%emt 0:0:3]
} Kh8 {[%emt 0:0:14]} 27. bxc3 {[%emt 0:0:18]} Rd2 {[%emt 0:0:0]} 28. Rf1 {[%emt 0:0:57]} b5 {[%emt 0:0:20]} 29. Bb3 {[%emt 0:0:11]} a5 {[%emt 0:0:9]
} 30. Nf4 {[%emt 0:2:12]} a4 {[%emt 0:0:5]} 31. Bd1 {[%emt 0:0:0]} Qg5 {[%emt 0:0:40]} 32. Qf3 {[%emt 0:0:1]} Rf8 {[%emt 0:0:8]} 33. g3 {[%emt 0:0:1]} Rxa2 {[%emt 0:0:7]} 34. Kh1 {[%emt 0:0:15]} Rd2 {[%emt 0:0:12]
} 35. Qe4 {[%emt 0:1:11]} Rxd1 {[%emt 0:0:15]} 36. Rxd1 {[%emt 0:0:11]
} Rxf4 {[%emt 0:0:3]} 37. gxf4 {[%emt 0:0:3]} Qh5+ {[%emt 0:0:0]} 38. Kg2 {[%emt 0:0:1]} Qg4+ {[%emt 0:0:5]} 39. Kh2 {[%emt 0:0:1]} Qxd1 {[%emt 0:0:12]} 40. Qe8+ {[%emt 0:0:2]} Kh7 {[%emt 0:0:1]} 41. Qe4+ {[%emt 0:0:3]
} Kg8 {[%emt 0:0:2]} 42. Qe8+ {[%emt 0:0:3]} Bf8 {[%emt 0:0:0]} 43. Qe6+ {[%emt 0:1:25]} Kg7 {[%emt 0:0:2]} 44. Qe5+ {[%emt 0:0:1]} Kf7 {[%emt 0:0:1]} 45. Qf5+ {[%emt 0:0:1]} Ke8 {[%emt 0:0:12]} 46. Qxb5+ {[%emt 0:0:41]
} Qd7 {[%emt 0:0:2]} 47. Qh5+ {[%emt 0:0:2]} Ke7 {[%emt 0:0:0]} 48. c4 {[%emt 0:0:44]} Qd4 {[%emt 0:0:34]} 49. Qe2+ {[%emt 0:0:15]} Kf6 {[%emt 0:0:8]} 50. Qe8 {[%emt 0:1:8]} Qxf2+ {[%emt 0:0:13]} 0-1

[Event "FIDE World Rapid-ch Open 2018"]
[White "Pantsulaia, Levan"]
[Black "Hovhannisyan, Robert"]
[Site "St. Petersburg"]
[Round "15.31"]
[Annotator "ChessBase"]
[Result "1-0"]
[Date "2018.12.28"]
[WhiteElo "2597"]
[BlackElo "2637"]
[PlyCount "147"]
[TimeControl "900+10"]

1. c4 {[%emt 0:0:0]} c6 {[%emt 0:0:4]} 2. g3 {[%emt 0:0:0]} d5 {[%emt 0:0:0]} 3. Bg2 {[%emt 0:0:0]} e5 {[%emt 0:0:2]} 4. cxd5 {[%emt 0:0:0]} cxd5 {[%emt 0:0:2]} 5. d4 {[%emt 0:0:44]} Bb4+ {[%emt 0:0:3]} 6. Bd2 {[%emt 0:0:17]
} Bxd2+ {[%emt 0:0:3]} 7. Qxd2 {[%emt 0:0:6]} e4 {[%emt 0:0:0]} 8. Nc3 {[%emt 0:0:8]} Nc6 {[%emt 0:0:11]} 9. Nh3 {[%emt 0:0:18]} f5 {[%emt 0:0:40]
} 10. 0-0 {[%emt 0:0:6]} Nf6 {[%emt 0:0:7]} 11. Nf4 {[%emt 0:0:0]} 0-0 {[%emt 0:0:52]} 12. f3 {[%emt 0:0:2]} Qd6 {[%emt 0:0:41]} 13. Rac1 {[%emt 0:0:28]} g5 {[%emt 0:1:50]} 14. Nh3 {[%emt 0:0:3]} h6 {[%emt 0:0:0]} 15. fxe4 {[%emt 0:0:54]} dxe4 {[%emt 0:0:55]} 16. e3 {[%emt 0:1:20]} Be6 {[%emt 0:0:58]} 17. Nf2 {[%emt 0:0:3]} g4 {[%emt 0:2:27]} 18. Qe2 {[%emt 0:1:38]
} Rad8 {[%emt 0:0:25]} 19. a3 {[%emt 0:0:24]} h5 {[%emt 0:0:0]} 20. Qb5 {[%emt 0:0:57]} Rd7 {[%emt 0:0:30]} 21. Nfxe4 {[%emt 0:1:52]} Nxe4 {[%emt 0:0:46]} 22. Nxe4 fxe4 {[%emt 0:0:2]} 23. Qxh5 {[%emt 0:1:9]} Rg7 {[%emt 0:2:44]} 24. Rxf8+ {[%emt 0:1:26]} Qxf8 {[%emt 0:0:3]} 25. Bxe4 {[%emt 0:0:2]} Bf7 {[%emt 0:0:13]} 26. Qh6 {[%emt 0:0:5]} Qe7 {[%emt 0:0:0]} 27. Bg2 {[%emt 0:0:42]} Rg5 {[%emt 0:0:47]} 28. Rc3 {[%emt 0:1:30]} Rg6 {[%emt 0:0:53]} 29. Qf4 {[%emt 0:0:2]} Kg7 {[%emt 0:0:14]} 30. Rc5 {[%emt 0:0:51]
} Qd6 {[%emt 0:1:9]} 31. b4 {[%emt 0:0:4]} a6 {[%emt 0:0:28]
} 32. Rf5 {[%emt 0:0:14]} Nd8 {[%emt 0:1:2]} 33. Kf2 {[%emt 0:0:30]} Qe6 {[%emt 0:0:8]
} 34. Kg1 {[%emt 0:1:6]} Qd6 {[%emt 0:0:9]} 35. d5 {[%emt 0:0:0]} Qxf4 {[%emt 0:0:22]} 36. gxf4 {[%emt 0:0:2]} g3 {[%emt 0:0:2]} 37. hxg3 {[%emt 0:0:25]} Rxg3 {[%emt 0:0:1]} 38. Kf2 {[%emt 0:0:2]} Rg4 {[%emt 0:0:7]
} 39. Bf3 {[%emt 0:0:12]} Rh4 {[%emt 0:0:6]} 40. Kg3 {[%emt 0:0:0]} Rh6 {[%emt 0:0:6]} 41. e4 {[%emt 0:0:1]} a5 {[%emt 0:0:31]} 42. Rg5+ {[%emt 0:0:58]} Kf8 {[%emt 0:0:6]} 43. bxa5 {[%emt 0:0:22]} Ra6 {[%emt 0:0:15]
} 44. e5 {[%emt 0:0:6]} Rxa5 {[%emt 0:0:10]} 45. e6 {[%emt 0:0:0]} Bxe6 {[%emt 0:0:12]} 46. dxe6 {[%emt 0:0:2]} Rxg5+ {[%emt 0:0:3]} 47. fxg5 {[%emt 0:0:2]} Nxe6 {[%emt 0:0:2]} 48. Kg4 {[%emt 0:0:47]} b5 {[%emt 0:0:8]
} 49. Be2 {[%emt 0:0:10]} Nd4 {[%emt 0:0:9]} 50. Bd3 {[%emt 0:0:0]} Kf7 {[%emt 0:0:23]} 51. Kh4 {[%emt 0:0:29]} Kf8 {[%emt 0:0:8]} 52. Kh5 {[%emt 0:0:9]} Kg7 {[%emt 0:0:3]} 53. Kg4 {[%emt 0:0:7]} b4 {[%emt 0:0:0]} 54. a4 {[%emt 0:0:20]} b3 {[%emt 0:0:9]} 55. Be4 {[%emt 0:0:27]} Ne6 {[%emt 0:0:15]} 56. a5 {[%emt 0:0:5]} Nc5 {[%emt 0:0:1]} 57. Bf5 {[%emt 0:0:20]
} Kf7 {[%emt 0:0:10]} 58. Kf4 {[%emt 0:0:16]} Ne6+ {[%emt 0:0:0]} 59. Ke5 {[%emt 0:0:8]} Nc5 {[%emt 0:0:24]} 60. Kd5 {[%emt 0:0:6]} Na6 {[%emt 0:0:1]} 61. Kc4 {[%emt 0:0:11]} b2 {[%emt 0:0:1]} 62. Kc3 {[%emt 0:0:0]} Ke7 {[%emt 0:0:1]} 63. Kxb2 {[%emt 0:0:4]} Nc7 {[%emt 0:0:13]} 64. Kb3 {[%emt 0:0:5]} Kd6 {[%emt 0:0:7]} 65. Kc4 {[%emt 0:0:13]} Ke5 {[%emt 0:0:27]
} 66. Bc2 {[%emt 0:0:8]} Kd6 {[%emt 0:0:6]} 67. g6 {[%emt 0:0:0]} Ne6 {[%emt 0:0:3]} 68. Bf5 {[%emt 0:0:9]} Ng7 {[%emt 0:0:4]} 69. Be4 {[%emt 0:0:5]} Kc7 {[%emt 0:0:11]} 70. Kb5 {[%emt 0:0:6]} Ne8 {[%emt 0:0:12]
} 71. Kc5 {[%emt 0:0:3]} Ng7 {[%emt 0:0:12]} 72. Bd5 {[%emt 0:0:0]} Ne8 {[%emt 0:0:25]} 73. a6 {[%emt 0:0:5]} Nf6 {[%emt 0:0:15]} 74. g7 {[%emt 0:0:7]} 1-0

[Event "FIDE World Rapid-ch Open 2018"]
[White "Alekseev, Evgeny"]
[Black "Lomasov, Semyon"]
[Site "St. Petersburg"]
[Round "15.32"]
[Annotator "ChessBase"]
[Result "1-0"]
[Date "2018.12.28"]
[WhiteElo "2639"]
[BlackElo "2553"]
[PlyCount "75"]
[TimeControl "900+10"]

1. e4 {[%emt 0:0:0]} e5 {[%emt 0:0:0]} 2. Nf3 {[%emt 0:0:0]} Nc6 {[%emt 0:0:0]
} 3. Bb5 {[%emt 0:0:6]} a6 {[%emt 0:0:0]} 4. Ba4 {[%emt 0:0:0]} Nf6 {[%emt 0:0:1]} 5. d3 {[%emt 0:0:9]} b5 {[%emt 0:0:5]} 6. Bb3 {[%emt 0:0:2]
} Bc5 {[%emt 0:0:2]} 7. 0-0 {[%emt 0:1:11]} d6 {[%emt 0:0:5]
} 8. c3 {[%emt 0:0:3]} h6 {[%emt 0:0:9]} 9. Be3 {[%emt 0:0:49]} Bxe3 {[%emt 0:0:39]
} 10. fxe3 {[%emt 0:0:2]} 0-0 {[%emt 0:0:6]} 11. Nbd2 {[%emt 0:0:5]
} Be6 {[%emt 0:0:11]} 12. Bc2 {[%emt 0:0:7]} Ne7 {[%emt 0:0:0]} 13. Nh4 {[%emt 0:0:8]} c5 {[%emt 0:0:15]} 14. Qe2 {[%emt 0:1:9]} Nc6 {[%emt 0:1:51]} 15. Nf5 {[%emt 0:3:50]} d5 {[%emt 0:0:14]} 16. exd5 {[%emt 0:0:26]
} Nxd5 {[%emt 0:0:2]} 17. Rae1 {[%emt 0:1:30]} Nce7 {[%emt 0:0:0]} 18. Nh4 {[%emt 0:0:41]} Nc6 {[%emt 0:0:29]} 19. Qf2 {[%emt 0:0:21]} f5 {[%emt 0:2:52]} 20. e4 {[%emt 0:1:22]} fxe4 {[%emt 0:0:35]} 21. Qxf8+ {[%emt 0:0:10]
} Qxf8 {[%emt 0:0:1]} 22. Rxf8+ {[%emt 0:0:2]} Rxf8 {[%emt 0:0:0]} 23. Nxe4 {[%emt 0:0:17]} c4 {[%emt 0:0:40]} 24. dxc4 {[%emt 0:0:11]} bxc4 {[%emt 0:0:2]} 25. Nc5 {[%emt 0:0:32]} Bc8 {[%emt 0:0:3]} 26. Nf3 {[%emt 0:1:20]
} Bg4 {[%emt 0:1:31]} 27. Nxe5 {[%emt 0:2:12]} Nxe5 {[%emt 0:0:0]} 28. Rxe5 {[%emt 0:0:2]} Nf4 {[%emt 0:0:1]} 29. h3 {[%emt 0:0:30]} Be2 {[%emt 0:0:1]} 30. Rf5 {[%emt 0:0:57]} Rc8 {[%emt 0:1:43]} 31. Rxf4 {[%emt 0:0:44]
} Rxc5 {[%emt 0:0:1]} 32. Kf2 {[%emt 0:0:2]} Bd3 {[%emt 0:0:0]} 33. Bxd3 {[%emt 0:0:13]} cxd3 {[%emt 0:0:1]} 34. Ke3 {[%emt 0:0:8]} Rd5 {[%emt 0:0:21]} 35. Rd4 {[%emt 0:0:20]} Re5+ {[%emt 0:0:9]} 36. Kxd3 {[%emt 0:0:5]
} Re1 {[%emt 0:0:1]} 37. Rf4 {[%emt 0:0:32]} Rd1+ {[%emt 0:0:0]} 38. Ke4 1-0

[Event "FIDE World Rapid-ch Open 2018"]
[White "Levin, Evgeny A."]
[Black "Yudin, Sergei"]
[Site "St. Petersburg"]
[Round "15.33"]
[Annotator "ChessBase"]
[Result "1/2-1/2"]
[Date "2018.12.28"]
[WhiteElo "2516"]
[BlackElo "2507"]
[PlyCount "44"]
[TimeControl "900+10"]

1. d4 {[%emt 0:0:0]} d5 {[%emt 0:0:0]} 2. c4 {[%emt 0:0:0]} e6 {[%emt 0:0:0]} 3. Nf3 {[%emt 0:0:0]} c6 {[%emt 0:0:0]} 4. Bg5 {[%emt 0:0:17]} Be7 {[%emt 0:0:8]} 5. Bxe7 {[%emt 0:0:4]} Qxe7 {[%emt 0:0:1]} 6. Qc2 {[%emt 0:0:26]
} Nf6 {[%emt 0:0:12]} 7. e3 {[%emt 0:0:3]} Nbd7 {[%emt 0:0:0]} 8. Nc3 {[%emt 0:0:3]} 0-0 {[%emt 0:0:10]} 9. cxd5 {[%emt 0:1:5]} Nxd5 {[%emt 0:0:56]} 10. Be2 {[%emt 0:0:36]} Nxc3 {[%emt 0:1:6]} 11. Qxc3 {[%emt 0:0:2]
} c5 {[%emt 0:0:27]} 12. 0-0 {[%emt 0:0:42]} b6 {[%emt 0:0:7]
} 13. Rfd1 {[%emt 0:0:21]} Bb7 {[%emt 0:0:10]} 14. Rac1 {[%emt 0:0:17]} Rfc8 {[%emt 0:0:35]} 15. Qa3 {[%emt 0:0:58]} Kf8 {[%emt 0:0:42]} 16. dxc5 {[%emt 0:0:45]
} Nxc5 {[%emt 0:1:32]} 17. Nd4 {[%emt 0:0:16]} a5 {[%emt 0:0:0]} 18. Bf3 {[%emt 0:0:52]} Bxf3 {[%emt 0:0:9]} 19. Nxf3 {[%emt 0:0:2]} Rd8 {[%emt 0:0:50]} 20. Qc3 {[%emt 0:0:21]} Rxd1+ {[%emt 0:0:13]} 21. Rxd1 {[%emt 0:0:1]
} Rd8 {[%emt 0:0:6]} 22. Qc2 {[%emt 0:0:34]} Rxd1+ {[%emt 0:0:0]} 1/2-1/2

[Event "FIDE World Rapid-ch Open 2018"]
[White "Akopian, Vladimir"]
[Black "Tari, Aryan"]
[Site "St. Petersburg"]
[Round "15.37"]
[Annotator "ChessBase"]
[Result "1/2-1/2"]
[Date "2018.12.28"]
[WhiteElo "2650"]
[BlackElo "2620"]
[PlyCount "42"]
[TimeControl "900+10"]

1. Nf3 {[%emt 0:0:0]} Nf6 {[%emt 0:0:0]} 2. c4 {[%emt 0:0:7]} c5 {[%emt 0:0:0]
} 3. g3 {[%emt 0:0:16]} d5 {[%emt 0:0:4]} 4. cxd5 {[%emt 0:0:0]} Nxd5 {[%emt 0:0:3]} 5. Bg2 {[%emt 0:0:8]} Nc6 {[%emt 0:0:4]} 6. Nc3 {[%emt 0:0:12]} Nxc3 {[%emt 0:0:21]} 7. bxc3 {[%emt 0:0:9]} e5 {[%emt 0:0:0]} 8. 0-0 {[%emt 0:0:18]} Be7 {[%emt 0:0:2]} 9. d3 {[%emt 0:0:12]} 0-0 {[%emt 0:0:6]
} 10. Rb1 {[%emt 0:0:2]} Qc7 {[%emt 0:0:9]} 11. Qc2 {[%emt 0:0:0]} Bf5 {[%emt 0:0:51]} 12. Nd2 {[%emt 0:0:11]} Rab8 {[%emt 0:1:36]} 13. Nc4 {[%emt 0:0:41]} b5 {[%emt 0:0:26]} 14. Ne3 {[%emt 0:0:7]} Be6 {[%emt 0:0:0]} 15. Nd5 {[%emt 0:0:7]} Qd7 {[%emt 0:0:8]} 16. e4 {[%emt 0:0:23]} Bd6 {[%emt 0:1:16]} 17. Be3 {[%emt 0:1:52]} f5 {[%emt 0:3:1]} 18. exf5 {[%emt 0:0:45]
} Bxf5 {[%emt 0:0:1]} 19. Be4 {[%emt 0:0:40]} Kh8 {[%emt 0:0:0]} 20. Rfe1 {[%emt 0:0:42]} Ne7 {[%emt 0:0:44]} 21. Nxe7 {[%emt 0:0:28]} Bxe7 {[%emt 0:0:28]} 1/2-1/2

[Event "FIDE World Rapid-ch Open 2018"]
[White "Bocharov, Dmitry"]
[Black "Petrov, Nikita"]
[Site "St. Petersburg"]
[Round "15.38"]
[Annotator "ChessBase"]
[Result "1-0"]
[Date "2018.12.28"]
[WhiteElo "2533"]
[BlackElo "2593"]
[PlyCount "67"]
[TimeControl "900+10"]

1. Nf3 {[%emt 0:0:0]} d5 {[%emt 0:0:0]} 2. g3 {[%emt 0:0:18]} g6 {[%emt 0:0:0]} 3. Bg2 {[%emt 0:0:7]} Bg7 {[%emt 0:0:0]} 4. c4 {[%emt 0:0:8]} dxc4 {[%emt 0:0:0]} 5. Qa4+ {[%emt 0:0:14]} Nc6 {[%emt 0:0:3]} 6. Qxc4 {[%emt 0:0:25]
} e5 {[%emt 0:0:15]} 7. 0-0 {[%emt 0:0:18]} Nge7 {[%emt 0:0:0]} 8. d3 {[%emt 0:0:2]} Be6 {[%emt 0:1:43]} 9. Qc2 {[%emt 0:0:5]} 0-0 {[%emt 0:0:56]
} 10. a3 {[%emt 0:1:46]} a5 {[%emt 0:0:27]} 11. Nc3 {[%emt 0:0:0]} Nd4 {[%emt 0:0:52]} 12. Nxd4 {[%emt 0:0:3]} exd4 {[%emt 0:0:1]} 13. Ne4 {[%emt 0:0:40]} Bd5 {[%emt 0:0:57]} 14. Bf4 {[%emt 0:0:16]} c6 {[%emt 0:0:25]
} 15. b4 {[%emt 0:0:19]} h6 {[%emt 0:2:43]} 16. bxa5 {[%emt 0:0:0]} Rxa5 {[%emt 0:1:0]} 17. Rfb1 {[%emt 0:2:22]} b6 {[%emt 0:0:44]} 18. Bd6 {[%emt 0:3:33]} Re8 {[%emt 0:0:55]} 19. a4 {[%emt 0:0:44]} c5 {[%emt 0:0:0]} 20. Bf4 {[%emt 0:1:14]} g5 {[%emt 0:1:17]} 21. Bd2 {[%emt 0:0:49]} Ra7 {[%emt 0:0:29]} 22. Be1 {[%emt 0:0:52]} f5 {[%emt 0:0:10]} 23. Nd2 {[%emt 0:0:2]
} Bxg2 {[%emt 0:0:4]} 24. Kxg2 {[%emt 0:0:2]} Nd5 {[%emt 0:0:0]} 25. Nc4 {[%emt 0:0:7]} f4 {[%emt 0:0:48]} 26. Qb3 {[%emt 0:0:36]} Rf7 {[%emt 0:0:46]} 27. Nxb6 {[%emt 0:0:46]} Nxb6 {[%emt 0:0:15]} 28. Qxb6 {[%emt 0:0:5]
} Qd5+ {[%emt 0:0:1]} 29. Kg1 {[%emt 0:0:14]} Rxe2 {[%emt 0:0:0]} 30. a5 {[%emt 0:0:11]} Qf5 {[%emt 0:0:44]} 31. a6 {[%emt 0:0:35]} fxg3 {[%emt 0:0:38]} 32. Qb8+ {[%emt 0:0:38]} Kh7 {[%emt 0:0:1]} 33. Qxg3 {[%emt 0:0:2]
} Re3 34. Qg2 1-0

[Event "FIDE World Rapid-ch Open 2018"]
[White "Bindrich, Falko"]
[Black "Dreev, Aleksey"]
[Site "St. Petersburg"]
[Round "15.39"]
[Annotator "ChessBase"]
[Result "0-1"]
[Date "2018.12.28"]
[WhiteElo "2606"]
[BlackElo "2670"]
[PlyCount "64"]
[TimeControl "900+10"]

1. d4 {[%emt 0:0:0]} d5 {[%emt 0:0:0]} 2. c4 {[%emt 0:0:0]} c6 {[%emt 0:0:0]} 3. Nf3 {[%emt 0:0:0]} Nf6 {[%emt 0:0:0]} 4. e3 {[%emt 0:0:0]} Bf5 {[%emt 0:0:0]} 5. Nc3 {[%emt 0:0:0]} a6 {[%emt 0:0:0]} 6. Be2 {[%emt 0:0:0]} h6 {[%emt 0:0:10]} 7. Bd3 {[%emt 0:0:2]} Bxd3 {[%emt 0:0:2]} 8. Qxd3 {[%emt 0:0:1]} e6 {[%emt 0:0:2]} 9. 0-0 {[%emt 0:0:3]} Bb4 {[%emt 0:0:0]} 10. Bd2 {[%emt 0:0:1]} 0-0 {[%emt 0:0:23]} 11. Rfd1 {[%emt 0:0:2]} Ba5 {[%emt 0:0:19]} 12. Rab1 {[%emt 0:0:12]} Nbd7 {[%emt 0:0:16]} 13. b4 {[%emt 0:0:2]
} Bc7 {[%emt 0:0:1]} 14. e4 {[%emt 0:1:4]} Nb6 {[%emt 0:0:0]} 15. c5 {[%emt 0:0:24]} Nc4 {[%emt 0:2:58]} 16. Be1 {[%emt 0:0:15]} Nh5 {[%emt 0:1:9]} 17. g3 {[%emt 0:0:15]} Qf6 {[%emt 0:1:38]} 18. Nd2 {[%emt 0:0:0]} Nxd2 {[%emt 0:0:23]} 19. Bxd2 {[%emt 0:0:3]} Qg6 {[%emt 0:0:33]} 20. Qf3 {[%emt 0:0:56]} dxe4 {[%emt 0:0:42]} 21. Nxe4 {[%emt 0:0:26]} f5 {[%emt 0:0:6]
} 22. Nc3 {[%emt 0:1:6]} f4 {[%emt 0:0:12]} 23. Qe4 {[%emt 0:0:0]} Rf5 {[%emt 0:0:28]} 24. Re1 {[%emt 0:0:22]} Re8 {[%emt 0:0:27]} 25. Ne2 {[%emt 0:1:49]} f3 {[%emt 0:1:22]} 26. Rb3 {[%emt 0:3:52]} Nf6 {[%emt 0:0:0]} 27. Qd3 {[%emt 0:0:14]} fxe2 28. Qxe2 {[%emt 0:0:2]} e5 {[%emt 0:0:0]} 29. Re3 {[%emt 0:0:5]} Ng4 {[%emt 0:0:19]} 30. Re4 {[%emt 0:0:53]} Nxf2 {[%emt 0:0:16]} 31. Rh4 {[%emt 0:0:4]} e4 {[%emt 0:0:25]} 32. Be3 {[%emt 0:0:24]
} Bxg3 {[%emt 0:0:15]} 0-1